fUSD/lending_fUSD_20251017
["ID","MTS","AMOUNT","RATE_DAILY","PERIOD"]
[391680883,1760725876293,-2300.0,0.00047822,60]
[391680884,1760725876303,-151.0,0.00047847,120]
[391680885,1760725876313,-50636.2,0.0004785,120]
[391680886,1760725876322,-2500.0,0.0004786,49]
[391680887,1760725876334,-1036.09176627,0.0004788,100]
[391680888,1760725876343,-5000.0,0.000479,120]
[391680889,1760725876352,-233.96347,0.000479,30]
[391680890,1760725876361,-200.0,0.00047945,7]
[391680891,1760725876372,-2500.0,0.0004796,42]
[391680892,1760725876382,-2526.0,0.0004796,55]
[391680893,1760725876392,-1000.0,0.00047999,120]
[391680894,1760725876401,-50000.0,0.00048,48]
[391680895,1760725876411,-300.0,0.00048,120]
[391680896,1760725876420,-177172.16448837,0.00048,120]
[391680897,1760725876430,-753782.86510714,0.00048,120]
[391680898,1760725876440,-100000.0,0.00048,60]
[391680899,1760725876449,-295284.29508901,0.00048,120]
[391680900,1760725876458,-20000.0,0.00048,120]
[391680901,1760725876468,-1000.0,0.00048,120]
[391680902,1760725876479,-32804.92309559,0.00048,120]
[391680903,1760725876957,-500.0,0.00024657,2]
[391680904,1760725876967,-500.0,0.00024657,2]
[391680905,1760725876978,-500.0,0.00024657,2]
[391680906,1760725876987,-518.87885304,0.00024657,2]
[391680907,1760725876997,-500.0,0.00024657,2]
[391680908,1760725877008,-500.0,0.00024657,2]
[391680909,1760725877017,-500.0,0.00024657,2]
[391680910,1760725877026,-500.0,0.00024657,2]
[391680911,1760725877036,-500.0,0.00024657,2]
[391680912,1760725877045,-500.0,0.00024657,2]
[391680913,1760725877054,-500.0,0.00024657,2]
[391680914,1760725877063,-591.96289258,0.00024657,2]
[391680915,1760725877072,-500.0,0.00024657,2]
[391680916,1760725877082,-500.0,0.00024657,2]
[391680917,1760725877091,-180.32844316,0.00024657,2]
[391680918,1760725877128,-163.73665214,0.00024657,2]
[391680919,1760725877137,-202.09189594,0.00024657,2]
[391680920,1760725877149,-297.90810406,0.00024657,2]
[391680921,1760725877158,-500.0,0.00024931,2]
[391680922,1760725877167,-500.0,0.00024931,2]
[391680923,1760725877177,-500.0,0.00025205,2]
[391680924,1760725877187,-519.09,0.00026027,2]
[391680925,1760725877196,-519.09,0.00026301,2]
[391680926,1760725877206,-519.09,0.00026575,2]
[391680927,1760725877215,-519.09,0.00026849,2]
[391680928,1760725877225,-519.09,0.00027123,2]
[391680929,1760725877235,-519.09,0.00027397,2]
[391680930,1760725877249,-519.09,0.00027671,17]
[391680931,1760725877258,-519.09,0.00027945,17]
[391680932,1760725877268,-519.09,0.00028219,17]
[391680933,1760725877277,-519.09,0.00028493,17]
[391680934,1760725877287,-579.70992527,0.00028999,2]
[391680935,1760725877298,-1000.0,0.00031386,11]
[391680936,1760725877307,-1000.0,0.00031386,11]
[391680937,1760725877318,-150.0,0.00033377,3]
[391680938,1760725877328,-557.0,0.00035474,2]
[391680939,1760725877338,-300.0,0.00035617,3]
[391680940,1760725877347,-212.59710363,0.00035682,17]
[391680941,1760725877359,-287.40289637,0.00035682,17]
[391680942,1760725877369,-500.0,0.00035956,17]
[391680943,1760725877379,-500.0,0.0003623,17]
[391680944,1760725877390,-500.0,0.00036504,17]
[391680945,1760725877400,-500.0,0.00036778,17]
[391680946,1760725877410,-500.0,0.00037052,17]
[391680947,1760725877419,-500.0,0.00037326,17]
[391680948,1760725877429,-152.74,0.000376,17]
[391680949,1760725877439,-557.0,0.00038474,2]
[391680950,1760725877449,-591.68330208,0.00040099,17]
[391680951,1760725877459,-500.0,0.00040099,17]
[391680952,1760725877469,-557.0,0.00041474,2]
[391680953,1760725877480,-557.0,0.00044474,2]
[391680954,1760725877491,-1963.97,0.00044741,120]
[391680955,1760725877529,-1963.97,0.00044741,120]
[391680956,1760725877539,-1963.97,0.00044741,120]
[391680957,1760725877548,-1963.97,0.00044741,120]
[391680958,1760725877558,-521.71322395,0.00044741,120]
[391680959,1760725877570,-545.30520065,0.00044741,120]
[391680960,1760725877581,-896.9515754,0.00044741,120]
[391680961,1760725877591,-1963.97,0.00044741,120]
[391680962,1760725877600,-11.96042279,0.00044741,120]
[391680963,1760725878636,200.0,0.00032059,120]
[391680971,1760726118615,-376.19,0.00013699,2]
[391680972,1760726118637,-4457.92750703,0.00013868,5]
[391680973,1760726118657,-1200.0,0.00014998,2]
[391680974,1760726118679,-160.0,0.00015,2]
[391680975,1760726118846,-195.0,0.0001639,2]
[391680976,1760726118868,-110.88249297,0.00019073,2]
[391681014,1760727032222,-266.93900787,0.00018,2]
[391681015,1760727032234,-233.06099213,0.00018,2]
[391681016,1760727032243,-500.0,0.000182,2]
[391681017,1760727032253,-1000.0,0.000185,2]
[391681019,1760727032262,-1142.66218963,0.000195,2]
[391681021,1760727032271,-475.6557911,0.00019548,2]
[391681023,1760727032281,-1142.66218963,0.000197,2]
[391681025,1760727032290,-300.0,0.00019899,2]
[391681027,1760727032299,-262.98422775,0.000199,2]
[391681032,1760727032438,-879.67796188,0.000199,2]
[391681033,1760727032447,-1200.0,0.00020099,2]
[391681034,1760727032457,-1142.66218963,0.000201,2]
[391681035,1760727032466,-376.19,0.00020187,2]
[391681036,1760727032475,-300.0,0.00020299,2]
[391681037,1760727032484,-1142.66218963,0.000203,2]
[391681038,1760727032493,-850.872595,0.0002036,2]
[391681040,1760727032503,-1142.66218963,0.000205,2]
[391681041,1760727032513,-2981.28,0.00020637,2]
[391681042,1760727032523,-610.0,0.00020664,2]
[391681043,1760727032532,-550.15,0.00020696,2]
[391681044,1760727032544,-1142.66218963,0.000207,2]
[391681046,1760727032553,-200.0,0.00020815,2]
[391681048,1760727032563,-250.0,0.00020885,2]
[391681049,1760727032575,-1142.66218963,0.000209,2]
[391681050,1760727032584,-6717.92,0.00020913,2]
[391681051,1760727032594,-2305.21,0.00021005,2]
[391681052,1760727032603,-169.15,0.00021098,2]
[391681054,1760727032613,-150.0,0.00021098,2]
[391681056,1760727032623,-1142.66218963,0.000211,2]
[391681058,1760727032632,-2751.0,0.00021112,2]
[391681060,1760727032642,-666.0,0.00021166,3]
[391681061,1760727032654,-1142.66218963,0.000213,2]
[391681062,1760727032663,-550.15,0.00021472,2]
[391681063,1760727032673,-590.46,0.00021546,30]
[391681064,1760727032682,-4000.0,0.0002182,2]
[391681065,1760727032692,-1852.42,0.00021982,2]
[391681066,1760727032702,-554.94868506,0.00022105,2]
[391681067,1760727032711,-550.15,0.00022248,2]
[391681069,1760727032721,-166.66,0.00022537,2]
[391681070,1760727032731,-550.15,0.00023025,2]
[391681071,1760727032741,-166.66,0.00023281,2]
[391681072,1760727032751,-150.0,0.00023506,2]
[391681073,1760727032761,-169.15,0.00023735,2]
[391681074,1760727032771,-550.15,0.00023801,2]
[391681075,1760727032780,-150.0,0.00023835,2]
[391681076,1760727032790,-195.98,0.0002394,2]
[391681077,1760727032800,-166.66,0.00024025,2]
[391681078,1760727032810,-4054.7679,0.00024557,2]
[391681079,1760727032819,-6616.6414,0.00024557,2]
[391681080,1760727032828,-5000.0,0.00024557,2]
[391681081,1760727032838,-55555.0,0.00024557,3]
[391681082,1760727032848,-2500.0,0.00024557,2]
[391681083,1760727032857,-369.64188362,0.00024557,2]
[391681084,1760727032867,-500.0,0.00024573,2]
[391681085,1760727032877,-500.0,0.00024573,2]
[391681086,1760727032887,-500.0,0.00024573,2]
[391681087,1760727032897,-500.0,0.00024573,2]
[391681088,1760727032906,-500.0,0.00024573,2]
[391681089,1760727032916,-500.0,0.00024573,2]
[391681090,1760727032925,-500.0,0.00024573,2]
[391681091,1760727032935,-500.0,0.00024573,2]
[391681092,1760727032944,-529.59492403,0.00024573,2]
[391681093,1760727032954,-591.41705692,0.00024657,2]
[391681094,1760727032965,-490.71870614,0.00024657,2]
[391681095,1760727032974,-500.0,0.00024657,2]
[391681096,1760727032987,-500.0,0.00024657,2]
[391681097,1760727032997,-500.0,0.00024657,2]
[391681098,1760727033007,-500.0,0.00024657,2]
[391681099,1760727033016,-500.0,0.00024657,2]
[391681100,1760727033025,-500.0,0.00024657,2]
[391681101,1760727033034,-500.0,0.00024657,2]
[391681102,1760727033044,-500.0,0.00024657,2]
[391681103,1760727033053,-278.1950987,0.00024657,2]
[391681104,1760727033062,-500.0,0.00024657,2]
[391681105,1760727033072,-500.0,0.00024657,2]
[391681106,1760727033081,-500.0,0.00024657,2]
[391681107,1760727033091,-490.02136536,0.00024657,2]
[391681108,1760727033101,-500.0,0.00024657,2]
[391681109,1760727033110,-500.0,0.00024657,2]
[391681110,1760727033119,-500.0,0.00024657,2]
[391681111,1760727033129,-500.0,0.00024657,2]
[391681112,1760727033140,-501.25093077,0.00024657,2]
[391681113,1760727033149,-500.0,0.00024657,2]
[391681114,1760727033159,-500.0,0.00024657,2]
[391681115,1760727033168,-502.11844791,0.00024657,2]
[391681116,1760727033178,-500.0,0.00024657,2]
[391681117,1760727033187,-500.0,0.00024657,2]
[391681118,1760727033196,-500.0,0.00024657,2]
[391681119,1760727033206,-500.0,0.00024657,2]
[391681120,1760727033216,-526.53076299,0.00024657,2]
[391681121,1760727033225,-500.0,0.00024657,2]
[391681122,1760727033234,-500.0,0.00024657,2]
[391681123,1760727033244,-500.0,0.00024657,2]
[391681124,1760727033256,-500.0,0.00024657,2]
[391681125,1760727033265,-500.0,0.00024657,2]
[391681126,1760727033275,-500.0,0.00024657,2]
[391681127,1760727033285,-198.55424579,0.00024657,2]
[391681128,1760727033294,-368.1514152,0.00024657,2]
[391681129,1760727033304,-500.0,0.00024657,2]
[391681130,1760727033313,-500.0,0.00024657,2]
[391681131,1760727033323,-500.0,0.00024657,2]
[391681132,1760727033333,-465.17896311,0.00024657,2]
[391681133,1760727033343,-500.0,0.00024657,2]
[391681134,1760727033352,-500.0,0.00024657,2]
[391681135,1760727033361,-500.0,0.00024657,2]
[391681136,1760727033371,-467.90198181,0.00024657,2]
[391681137,1760727033380,-500.0,0.00024657,2]
[391681138,1760727033389,-544.51334855,0.00024657,2]
[391681139,1760727033399,-488.0030008,0.00024657,2]
[391681140,1760727033408,-500.0,0.00024657,2]
[391681141,1760727033418,-500.0,0.00024657,2]
[391681142,1760727033427,-626.70446276,0.00024657,2]
[391681143,1760727033437,-500.0,0.00024657,2]
[391681144,1760727033447,-500.0,0.00024657,2]
[391681145,1760727033460,-500.0,0.00024657,2]
[391681146,1760727033470,-1458.72,0.00024657,2]
[391681147,1760727033480,-500.0,0.00024657,2]
[391681148,1760727033490,-500.0,0.00024657,2]
[391681149,1760727033500,-500.0,0.00024657,2]
[391681150,1760727033517,-500.0,0.00024657,2]
[391681151,1760727033527,-500.0,0.00024657,2]
[391681152,1760727033536,-500.0,0.00024657,2]
[391681153,1760727033546,-500.0,0.00024657,2]
[391681154,1760727033556,-418.83275791,0.00024657,2]
[391681155,1760727033567,-500.0,0.00024657,2]
[391681156,1760727033582,-500.0,0.00024657,2]
[391681157,1760727033591,-389.39652003,0.00024657,2]
[391681158,1760727033601,-500.0,0.00024657,2]
[391681159,1760727033611,-500.0,0.00024657,2]
[391681160,1760727033622,-630.42998509,0.00024657,2]
[391681161,1760727033632,-500.0,0.00024657,2]
[391681162,1760727033642,-500.0,0.00024657,2]
[391681163,1760727033654,-500.81711423,0.00024657,2]
[391681164,1760727033664,-500.0,0.00024657,2]
[391681165,1760727033673,-500.49393048,0.00024657,2]
[391681166,1760727033682,-500.0,0.00024657,2]
[391681167,1760727033692,-511.03315106,0.00024657,2]
[391681168,1760727033702,-500.0,0.00024657,2]
[391681169,1760727033711,-500.0,0.00024657,2]
[391681170,1760727033722,-402.17838927,0.00024657,2]
[391681171,1760727033731,-401.66319116,0.00024657,2]
[391681172,1760727033741,-500.0,0.00024657,2]
[391681173,1760727033753,-500.0,0.00024657,2]
[391681174,1760727033762,-500.0,0.00024657,2]
[391681175,1760727033772,-500.0,0.00024657,2]
[391681176,1760727033781,-500.0,0.00024657,2]
[391681177,1760727033791,-500.0,0.00024657,2]
[391681178,1760727033800,-500.0,0.00024657,2]
[391681179,1760727033809,-512.85228187,0.00024657,2]
[391681180,1760727033818,-500.48634187,0.00024657,2]
[391681181,1760727033828,-500.0,0.00024657,2]
[391681182,1760727033838,-500.0,0.00024657,2]
[391681183,1760727034021,-500.0,0.00024657,2]
[391681184,1760727034031,-500.0,0.00024657,2]
[391681185,1760727034041,-500.0,0.00024657,2]
[391681186,1760727034051,-500.0,0.00024657,2]
[391681187,1760727034061,-500.0,0.00024657,2]
[391681188,1760727034071,-500.0,0.00024657,2]
[391681189,1760727034080,-500.0,0.00024657,2]
[391681190,1760727034090,-500.0,0.00024657,2]
[391681191,1760727034100,-500.0,0.00024657,2]
[391681192,1760727034109,-500.0,0.00024657,2]
[391681193,1760727034119,-500.0,0.00024657,2]
[391681194,1760727034129,-500.0,0.00024657,2]
[391681195,1760727034139,-500.0,0.00024657,2]
[391681196,1760727034149,-500.0,0.00024657,2]
[391681197,1760727034158,-500.0,0.00024657,2]
[391681198,1760727034168,-500.0,0.00024657,2]
[391681199,1760727034178,-500.0,0.00024657,2]
[391681200,1760727034187,-500.0,0.00024657,2]
[391681201,1760727034197,-500.0,0.00024657,2]
[391681202,1760727034207,-500.0,0.00024657,2]
[391681203,1760727034216,-612.35631477,0.00024657,2]
[391681204,1760727034226,-500.0,0.00024657,2]
[391681205,1760727034235,-501.01969237,0.00024657,2]
[391681206,1760727034245,-500.0,0.00024657,2]
[391681207,1760727034256,-500.0,0.00024657,2]
[391681208,1760727034266,-500.0,0.00024657,2]
[391681209,1760727034275,-500.0,0.00024657,2]
[391681210,1760727034284,-541.72511379,0.00024657,2]
[391681211,1760727034293,-501.79517519,0.00024657,2]
[391681212,1760727034302,-500.0,0.00024657,2]
[391681213,1760727034311,-500.0,0.00024657,2]
[391681214,1760727034321,-500.0,0.00024657,2]
[391681215,1760727034330,-500.0,0.00024657,2]
[391681216,1760727034339,-533.42442626,0.00024657,2]
[391681217,1760727034348,-500.0,0.00024657,2]
[391681218,1760727034359,-500.0,0.00024657,2]
[391681219,1760727034368,-500.0,0.00024657,2]
[391681220,1760727034378,-70.26251551,0.00024657,2]
[391681221,1760727034499,-323.44091325,0.00024657,2]
[391681222,1760727034512,-128.82348571,0.00024657,2]
[391681223,1760727034521,-500.0,0.00024657,2]
[391681224,1760727034530,-500.0,0.00024657,2]
[391681225,1760727034541,-300.0,0.00024657,2]
[391681226,1760727034556,-312.60622909,0.00024657,2]
[391681227,1760727038185,-160.0,0.00018608,2]
[391681228,1760727038195,-3165.2909418,0.00024557,2]
[391681229,1760727038207,-1834.7090582,0.00024557,2]
[391681230,1760727038217,-213.37401772,0.00024657,2]
[391681231,1760727038226,-517.37898201,0.00024657,2]
[391681232,1760727038249,-11.99141243,0.00024657,2]
[391681233,1760727038259,-500.33519733,0.00024657,2]
[391681234,1760727038268,-502.96828959,0.00024657,2]
[391681235,1760727038277,-400.0,0.00024657,2]
[391681236,1760727038287,-500.0,0.00024657,2]
[391681237,1760727038297,-649.92,0.00024657,2]
[391681238,1760727038307,-500.0,0.00024657,2]
[391681239,1760727038316,-500.0,0.00024657,2]
[391681240,1760727038330,-437.52791777,0.00024657,2]
[391681241,1760727038340,-500.0,0.00024657,2]
[391681242,1760727038351,-500.0,0.00024657,2]
[391681243,1760727038360,-500.0,0.00024657,2]
[391681244,1760727038370,-500.0,0.00024657,2]
[391681245,1760727038381,-500.0,0.00024657,2]
[391681246,1760727038391,-500.0,0.00024657,2]
[391681247,1760727038401,-500.0,0.00024657,2]
[391681248,1760727038410,-500.0,0.00024657,2]
[391681249,1760727038420,-390.0,0.00024657,2]
[391681250,1760727038430,-500.0,0.00024657,2]
[391681251,1760727038440,-500.0,0.00024657,2]
[391681252,1760727038449,-500.0,0.00024657,2]
[391681254,1760727038458,-500.0,0.00024657,2]
[391681256,1760727038468,-369.0063053,0.00024657,2]
[391681258,1760727038477,-500.0,0.00024657,2]
[391681259,1760727038486,-211.94220258,0.00024657,2]
[391681263,1760727038512,-298.93540419,0.00024657,2]
[391681265,1760727038521,-483.60802077,0.00024657,2]
[391681277,1760727040246,-16.39197923,0.00024657,2]
[391681278,1760727040256,-500.9906443,0.00024657,2]
[391681279,1760727040266,-500.0,0.00024657,2]
[391681280,1760727040276,-219.50752959,0.00024657,2]
[391681281,1760727040299,-170.49247041,0.00024657,2]
[391681282,1760727040309,-500.0,0.00024657,2]
[391681283,1760727040318,-643.2716856,0.00024657,2]
[391681284,1760727040328,-500.0,0.00024657,2]
[391681285,1760727040337,-500.0,0.00024657,2]
[391681286,1760727040346,-500.0,0.00024657,2]
[391681287,1760727040355,-500.0,0.00024657,2]
[391681288,1760727040364,-500.0,0.00024657,2]
[391681289,1760727040373,-394.30762381,0.00024657,2]
[391681290,1760727040382,-500.0,0.00024657,2]
[391681291,1760727040391,-500.0,0.00024657,2]
[391681292,1760727040400,-500.0,0.00024657,2]
[391681293,1760727040410,-500.0,0.00024657,2]
[391681294,1760727040419,-500.0,0.00024657,2]
[391681295,1760727040429,-500.0,0.00024657,2]
[391681296,1760727040438,-500.0,0.00024657,2]
[391681297,1760727040448,-500.0,0.00024657,2]
[391681298,1760727040457,-500.0,0.00024657,2]
[391681299,1760727040466,-500.0,0.00024657,2]
[391681300,1760727040475,-500.0,0.00024657,2]
[391681301,1760727040484,-618.80919512,0.00024657,2]
[391681302,1760727040493,-506.60356767,0.00024657,2]
[391681303,1760727040502,-500.0,0.00024657,2]
[391681304,1760727040512,-617.84138758,0.00024657,2]
[391681305,1760727040521,-500.0,0.00024657,2]
[391681306,1760727040530,-500.0,0.00024657,2]
[391681307,1760727040539,-502.3152745,0.00024657,2]
[391681308,1760727040548,-500.0,0.00024657,2]
[391681309,1760727040557,-500.0,0.00024657,2]
[391681310,1760727040566,-500.0,0.00024657,2]
[391681311,1760727040578,-500.0,0.00024657,2]
[391681312,1760727040588,-500.0,0.00024657,2]
[391681313,1760727040597,-500.0,0.00024657,2]
[391681314,1760727040607,-500.0,0.00024657,2]
[391681315,1760727040616,-500.0,0.00024657,2]
[391681316,1760727040627,-500.0,0.00024657,2]
[391681317,1760727040637,-500.0,0.00024657,2]
[391681318,1760727040646,-500.0,0.00024657,2]
[391681319,1760727040656,-502.47165569,0.00024657,2]
[391681320,1760727040666,-500.0,0.00024657,2]
[391681321,1760727040675,-500.0,0.00024657,2]
[391681322,1760727040684,-500.0,0.00024657,2]
[391681323,1760727040694,-500.0,0.00024657,2]
[391681324,1760727040703,-500.0,0.00024657,2]
[391681325,1760727040713,-500.58795676,0.00024657,2]
[391681326,1760727040723,-500.0,0.00024657,2]
[391681327,1760727040732,-500.0,0.00024657,2]
[391681331,1760727040741,-500.0,0.00024657,2]
[391681335,1760727040750,-500.0,0.00024657,2]
[391681338,1760727040761,-500.0,0.00024657,2]
[391681341,1760727040770,-500.0,0.00024657,2]
[391681344,1760727040779,-500.0,0.00024657,2]
[391681347,1760727040788,-500.0,0.00024657,2]
[391681350,1760727040798,-647.56,0.00024657,2]
[391681352,1760727040807,-500.0,0.00024657,2]
[391681354,1760727040816,-500.0,0.00024657,2]
[391681356,1760727040825,-500.0,0.00024657,2]
[391681358,1760727040834,-500.0,0.00024657,2]
[391681360,1760727040843,-500.0,0.00024657,2]
[391681362,1760727040852,-500.0,0.00024657,2]
[391681363,1760727040862,-500.0,0.00024657,2]
[391681365,1760727040872,-500.0,0.00024657,2]
[391681367,1760727040881,-500.0,0.00024657,2]
[391681369,1760727040891,-500.0,0.00024657,2]
[391681371,1760727040900,-500.0,0.00024657,2]
[391681373,1760727040909,-500.0,0.00024657,2]
[391681375,1760727040919,-500.0,0.00024657,2]
[391681377,1760727040928,-500.35724748,0.00024657,2]
[391681380,1760727040939,-500.0,0.00024657,2]
[391681382,1760727040948,-500.0,0.00024657,2]
[391681384,1760727040957,-500.0,0.00024657,2]
[391681386,1760727040967,-500.0,0.00024657,2]
[391681387,1760727040977,-500.0,0.00024657,2]
[391681389,1760727040986,-500.0,0.00024657,2]
[391681392,1760727040997,-500.0,0.00024657,2]
[391681394,1760727041006,-500.0,0.00024657,2]
[391681396,1760727041016,-500.2340833,0.00024657,2]
[391681398,1760727041025,-500.77685354,0.00024657,2]
[391681400,1760727041033,-500.0,0.00024657,2]
[391681402,1760727041042,-2000.0,0.00024657,7]
[391681404,1760727041051,-500.0,0.00024657,2]
[391681406,1760727041060,-534.13472612,0.00024657,2]
[391681407,1760727041069,-500.0,0.00024657,2]
[391681410,1760727041079,-501.24294434,0.00024657,2]
[391681412,1760727041088,-502.97863594,0.00024657,2]
[391681414,1760727041100,-500.43018167,0.00024657,2]
[391681416,1760727041108,-500.40338927,0.00024657,2]
[391681418,1760727041117,-500.0,0.00024657,2]
[391681420,1760727041126,-500.0,0.00024657,2]
[391681422,1760727041135,-500.0,0.00024657,2]
[391681424,1760727041144,-500.0,0.00024657,2]
[391681426,1760727041153,-500.0,0.00024657,2]
[391681428,1760727041162,-500.0,0.00024657,2]
[391681429,1760727041171,-500.0,0.00024657,2]
[391681431,1760727041180,-500.0,0.00024657,2]
[391681434,1760727041190,-500.0,0.00024657,2]
[391681435,1760727041200,-500.0,0.00024657,2]
[391681438,1760727041209,-339.30658251,0.00024657,2]
[391681440,1760727041223,-160.69341749,0.00024657,2]
[391681442,1760727041232,-500.0,0.00024657,2]
[391681444,1760727041241,-500.0,0.00024657,2]
[391681446,1760727041250,-500.0,0.00024657,2]
[391681448,1760727041259,-500.0,0.00024657,2]
[391681450,1760727041269,-506.67669714,0.00024657,2]
[391681452,1760727041279,-261.59474105,0.00024657,2]
[391681454,1760727041289,-500.0,0.00024657,2]
[391681456,1760727041297,-500.0,0.00024657,2]
[391681458,1760727041307,-500.0,0.00024657,2]
[391681460,1760727041315,-500.0,0.00024657,2]
[391681462,1760727041324,-500.0,0.00024657,2]
[391681464,1760727041333,-575.41863677,0.00024657,2]
[391681466,1760727041343,-500.0,0.00024657,2]
[391681468,1760727041352,-500.0,0.00024657,2]
[391681470,1760727041362,-500.0,0.00024657,2]
[391681472,1760727041371,-500.0,0.00024657,2]
[391681474,1760727041380,-265.59601219,0.00024657,2]
[391681476,1760727041390,-500.0,0.00024657,2]
[391681478,1760727041399,-333.13625527,0.00024657,2]
[391681480,1760727041408,-527.93647912,0.00024657,2]
[391681482,1760727041417,-500.0,0.00024657,2]
[391681484,1760727041426,-500.0,0.00024657,2]
[391681486,1760727041435,-179.63878603,0.00024657,2]
[391681488,1760727041444,-500.0,0.00024657,2]
[391681490,1760727041453,-500.0,0.00024657,2]
[391681492,1760727041462,-500.0,0.00024657,2]
[391681494,1760727041472,-500.0,0.00024657,2]
[391681496,1760727041481,-500.0,0.00024657,2]
[391681498,1760727041490,-500.0,0.00024657,2]
[391681500,1760727041500,-392.5815791,0.00024657,2]
[391681502,1760727041509,-500.0,0.00024657,2]
[391681504,1760727041519,-500.0,0.00024657,2]
[391681506,1760727041528,-500.0,0.00024657,2]
[391681508,1760727041537,-500.0,0.00024657,2]
[391681510,1760727041547,-500.0,0.00024657,2]
[391681512,1760727041556,-500.0,0.00024657,2]
[391681514,1760727041565,-501.10037917,0.00024657,2]
[391681516,1760727041575,-500.0,0.00024657,2]
[391681518,1760727041588,-500.0,0.00024657,2]
[391681520,1760727041597,-500.0,0.00024657,2]
[391681522,1760727041606,-500.0,0.00024657,2]
[391681524,1760727041615,-501.21010484,0.00024657,2]
[391681526,1760727041626,-500.0,0.00024657,2]
[391681528,1760727041635,-500.0,0.00024657,2]
[391681530,1760727041644,-500.0,0.00024657,2]
[391681532,1760727041654,-500.0,0.00024657,2]
[391681534,1760727041664,-500.0,0.00024657,2]
[391681536,1760727041673,-500.0,0.00024657,2]
[391681538,1760727041682,-500.0,0.00024657,2]
[391681540,1760727041692,-500.0,0.00024657,2]
[391681542,1760727041701,-500.0,0.00024657,2]
[391681544,1760727041710,-500.0,0.00024657,2]
[391681546,1760727041720,-636.42655522,0.00024657,2]
[391681548,1760727041729,-500.0,0.00024657,2]
[391681550,1760727041739,-500.0,0.00024657,2]
[391681552,1760727041748,-500.0,0.00024657,2]
[391681554,1760727041758,-500.0,0.00024657,2]
[391681556,1760727041767,-444.35990405,0.00024657,2]
[391681558,1760727041777,-500.0,0.00024657,2]
[391681560,1760727041786,-334.43893179,0.00024657,2]
[391681562,1760727041802,-165.56106821,0.00024657,2]
[391681565,1760727041811,-500.0,0.00024657,2]
[391681567,1760727041821,-500.0,0.00024657,2]
[391681569,1760727041830,-37.23893079,0.00024657,2]
[391681571,1760727041841,-462.76106921,0.00024657,2]
[391681573,1760727041850,-500.0,0.00024657,2]
[391681575,1760727041859,-587.66847555,0.00024657,2]
[391681577,1760727041868,-500.0,0.00024657,2]
[391681579,1760727041877,-500.0,0.00024657,2]
[391681581,1760727041885,-500.0,0.00024657,2]
[391681582,1760727041894,-500.0,0.00024657,2]
[391681585,1760727041904,-500.0,0.00024657,2]
[391681586,1760727041913,-500.0,0.00024657,2]
[391681588,1760727041922,-500.0,0.00024657,2]
[391681591,1760727041931,-500.0,0.00024657,2]
[391681593,1760727041941,-500.52629452,0.00024657,2]
[391681595,1760727041950,-500.0,0.00024657,2]
[391681597,1760727041960,-500.0,0.00024657,2]
[391681599,1760727041969,-548.85237847,0.00024657,2]
[391681601,1760727041979,-500.0,0.00024657,2]
[391681603,1760727041988,-503.12401729,0.00024657,2]
[391681605,1760727041997,-500.0,0.00024657,2]